bitfinex/quotes_BTCUSD_20220201
["timestamp","ask_amount","ask_price","bid_price","bid_amount"]
[1643710569629,0.34908856,38049.0,38038.0,0.00425762]
[1643710569831,0.2194618,38050.0,38048.0,0.00425762]
[1643710570429,0.2194618,38050.0,38041.0,0.07452315]
[1643710570430,0.2194618,38050.0,38042.0,0.00425762]
[1643710570630,0.34233038,38050.0,38042.0,0.00425762]
[1643710570828,0.72571923,38068.0,38042.0,0.00425762]
[1643710570829,0.01999038,38053.0,38049.0,0.00425762]
[1643710571031,0.01999038,38053.0,38052.0,0.00425762]
[1643710571231,0.01999038,38053.0,38048.0,0.00425762]
[1643710571447,0.01999038,38053.0,38037.0,0.35140554]
[1643710571448,0.353117,38052.0,38037.0,0.35140554]
[1643710571633,0.353117,38052.0,38034.0,0.00118979]
[1643710571634,0.05,38049.0,38040.0,0.00425762]
[1643710571834,0.01989038,38053.0,38040.0,0.00425762]
[1643710571835,0.05,38050.0,38040.0,0.00425762]
[1643710572479,0.13560275,38051.0,38040.0,0.00425762]
[1643710572677,0.18560275,38051.0,38040.0,0.00425762]
[1643710572877,0.13560275,38051.0,38047.0,0.00425762]
[1643710573079,0.13560275,38051.0,38034.0,0.0011]
[1643710573280,0.22485788,38041.0,38037.0,0.00425762]
[1643710573481,0.14860571,38036.0,38034.0,0.0011]
[1643710573683,1.385,38039.0,38034.0,0.0011]
[1643710573883,0.03616219,38045.0,38038.0,0.00425762]
[1643710574080,0.7215,38052.0,38037.0,0.00425762]
[1643710574280,0.7215,38052.0,38040.0,0.39111346]
[1643710574481,0.05,38047.0,38040.0,0.39111346]
[1643710574680,0.13117194,38043.0,38036.0,0.00425762]
[1643710574987,0.01984869,38045.0,38042.0,0.00425762]
[1643710575182,0.04992111,38047.0,38039.0,0.00425762]
[1643710575481,0.7215,38052.0,38048.0,0.10108778]
[1643710575682,0.7215,38052.0,38043.0,0.00425762]
[1643710575932,0.7215,38052.0,38042.0,0.30087854]
[1643710576132,1.07114856,38052.0,38043.0,0.0482]
[1643710576330,0.7215,38052.0,38040.0,0.05]
[1643710576534,0.34964856,38051.0,38034.0,0.0011]
[1643710576831,0.44702856,38051.0,38046.0,0.09622128]
[1643710577034,0.81928267,38047.0,38046.0,0.1004789]
[1643710577232,0.51928267,38047.0,38046.0,0.06642128]
[1643710577635,0.35,38047.0,38046.0,0.06642128]
[1643710577831,0.04992111,38051.0,38046.0,0.06642128]
[1643710578231,0.74224114,38052.0,38050.0,0.00425762]
[1643710578436,0.74224114,38052.0,38046.0,0.11642128]
[1643710578631,0.20964831,38051.0,38046.0,0.11642128]
[1643710578831,0.04992111,38051.0,38046.0,0.11642128]
[1643710579232,0.74224114,38052.0,38050.0,0.00425762]
[1643710580382,0.74224114,38052.0,38051.0,0.00849]
[1643710580578,0.74188152,38052.0,38051.0,0.00849]
[1643710581180,0.01830562,38054.0,38052.0,0.0763129]
[1643710581383,0.01861689,38055.0,38053.0,0.05245762]
[1643710581582,0.14992111,38069.0,38054.0,0.43029922]
[1643710581783,0.05,38070.0,38061.0,0.00425762]
[1643710581981,0.14992111,38071.0,38062.0,0.0482]
[1643710582181,0.30911126,38070.0,38066.0,0.00425762]
[1643710582382,0.353117,38069.0,38065.0,0.09984378]
[1643710582579,0.14418915,38068.0,38065.0,0.09984378]
[1643710582784,0.14992111,38076.0,38066.0,0.00425762]
[1643710582986,0.14992111,38076.0,38071.0,0.00425762]
[1643710583181,0.29331129,38074.0,38067.0,0.0482]
[1643710583437,0.29331129,38074.0,38054.0,0.01861689]
[1643710583438,0.14992111,38056.0,38053.0,0.01830562]
[1643710583635,0.01861689,38055.0,38053.0,0.01830562]
[1643710584236,0.82338475,38055.0,38054.0,0.00849]
[1643710584434,0.14992111,38058.0,38054.0,0.12820879]
[1643710585834,0.05,38055.0,38054.0,0.02710689]
[1643710586135,2.02609133,38055.0,38054.0,0.02710689]
[1643710586336,0.14992111,38045.0,38036.0,0.33087431]
[1643710586538,0.05,38043.0,38035.0,8.979e-05]
[1643710586736,0.14992111,38039.0,38035.0,8.979e-05]
[1643710586937,0.05,38041.0,38033.0,1.08893204]
[1643710586938,0.05,38036.0,38033.0,1.08893204]
[1643710587198,0.05,38036.0,38029.0,0.0032]
[1643710587199,0.29764589,38034.0,38029.0,0.0022]
[1643710587396,0.14966044,38030.0,38029.0,0.0022]
[1643710587593,1.53466044,38030.0,38029.0,0.0022]
[1643710587790,0.0482,38034.0,38029.0,0.0022]
[1643710587791,0.05185,38036.0,38030.0,0.0011]
[1643710587994,0.42,38037.0,38030.0,0.0011]
[1643710588299,0.19966044,38036.0,38030.0,0.0011]
[1643710588490,0.403117,38035.0,38030.0,0.0011]
[1643710588693,0.14966044,38036.0,38030.0,0.0011]
[1643710589098,0.01954661,38037.0,38029.0,0.0022]
[1643710589099,0.05,38032.0,38029.0,0.0022]
[1643710589292,0.05,38032.0,38025.0,0.08590702]
[1643710589293,0.14966044,38031.0,38025.0,0.08590702]
[1643710589493,1.72713,38031.0,38000.0,4.73268236]
[1643710589698,0.05,38026.0,38001.0,0.1]
[1643710589892,0.12749613,38032.0,38000.0,3.492894]
[1643710589893,0.19023386,38039.0,38021.0,1.05]
[1643710590099,0.1,38053.0,38025.0,0.05]
[1643710590398,0.1,38053.0,38022.0,0.37898452]
[1643710590399,0.26386416,38056.0,38035.0,0.05]
[1643710590594,0.90158188,38058.0,38035.0,0.05]
[1643710590595,0.90158188,38058.0,38036.0,0.0482]
[1643710590831,0.33451964,38045.0,38036.0,0.0482]
[1643710591030,0.33451964,38045.0,38030.0,0.0482]
[1643710591234,0.37569206,38045.0,38030.0,0.0482]
[1643710591431,0.37569206,38045.0,38023.0,0.33078452]
[1643710591432,0.37561236,38045.0,38023.0,0.33078452]
[1643710591729,0.27870153,38033.0,38023.0,0.33078452]
[1643710591932,0.43339043,38031.0,38030.0,0.09684628]
[1643710592127,0.12339043,38031.0,38023.0,0.15057492]
[1643710592526,1.967,38045.0,38023.0,0.15057492]
[1643710592527,0.582,38045.0,38024.0,0.33078452]
[1643710592732,1.06731188,38058.0,38057.0,3.61768457]
[1643710593031,1.06731188,38058.0,38025.0,0.2982]
[1643710593032,0.08532846,38057.0,38031.0,0.0482]
[1643710593231,0.05,38057.0,38033.0,0.05]
[1643710593433,0.05,38057.0,38041.0,0.13198712]
[1643710593434,0.29447747,38056.0,38041.0,0.13198712]
[1643710593627,0.05,38057.0,38042.0,0.45779782]
[1643710593828,0.05,38057.0,38042.0,0.1270133]
[1643710594230,0.33078452,38056.0,38042.0,0.1270133]
[1643710594428,0.05,38057.0,38043.0,0.001]
[1643710594429,0.04040758,38055.0,38043.0,0.001]
[1643710594685,0.33078452,38054.0,38043.0,0.001]
[1643710594885,0.33078452,38054.0,38042.0,0.0788133]
[1643710594886,0.5,38045.0,38042.0,0.0698133]
[1643710595084,0.5,38045.0,38027.0,0.04828983]
[1643710595283,0.33078452,38044.0,38035.0,0.12657933]
[1643710595484,0.22227385,38046.0,38035.0,0.12657933]
[1643710595684,0.22227385,38046.0,38035.0,0.17657933]
[1643710595884,0.2256,38055.0,38036.0,0.37898452]
[1643710596087,0.05,38057.0,38036.0,0.37898452]
[1643710596484,0.05,38057.0,38049.0,0.15074675]
[1643710596686,0.05,38057.0,38046.0,0.0482]
[1643710596885,0.27755854,38056.0,38049.0,0.05]
[1643710597185,0.27755854,38056.0,38046.0,0.0482]
[1643710597586,0.33078452,38055.0,38045.0,0.07684594]
[1643710597786,0.353117,38054.0,38040.0,0.20282208]
[1643710597984,0.33078452,38053.0,38040.0,0.62282208]
[1643710598187,0.27755854,38056.0,38040.0,0.62282208]
[1643710598636,0.29626983,38050.0,38040.0,0.62282208]
[1643710599233,0.3084064,38049.0,38040.0,0.62282208]
[1643710599635,0.3084064,38049.0,38040.0,0.47]
[1643710599835,0.35303577,38048.0,38040.0,0.42]
[1643710600036,0.33355708,38047.0,38040.0,0.42]
[1643710600237,0.31686562,38046.0,38041.0,0.001]
[1643710600433,0.30757866,38045.0,38041.0,0.001]
[1643710600635,0.31686562,38046.0,38041.0,0.001]
[1643710600835,0.3884329,38049.0,38041.0,0.001]
[1643710601036,0.28765194,38043.0,38041.0,0.001]
[1643710601435,0.28765194,38043.0,38040.0,0.416]
[1643710601834,0.28765194,38043.0,38040.0,0.466]
[1643710602092,0.30777969,38042.0,38030.0,0.1]
[1643710602282,0.30777969,38042.0,38023.0,8.983e-05]
[1643710602482,0.30777969,38042.0,38022.0,0.42]
[1643710602781,0.25702131,38037.0,38023.0,0.33379932]
[1643710602982,0.25702131,38037.0,38032.0,0.13631782]
[1643710603384,0.26985789,38045.0,38032.0,0.13631782]
[1643710603385,0.01963325,38042.0,38032.0,0.13631782]
[1643710603585,0.01963325,38042.0,38037.0,0.09188148]
[1643710604185,0.34533987,38046.0,38037.0,0.09188148]
[1643710604387,0.26437791,38041.0,38032.0,0.13631782]
[1643710604588,0.33598199,38040.0,38032.0,0.13631782]
[1643710604786,0.30678358,38040.0,38032.0,0.13631782]
[1643710605086,0.01936158,38046.0,38032.0,0.13631782]
[1643710605487,0.01936158,38046.0,38040.0,0.08464986]
[1643710605830,0.01936158,38046.0,38040.0,0.13464986]
[1643710606030,0.01936158,38046.0,38040.0,0.05]
[1643710606231,0.01936158,38046.0,38033.0,0.0482]
[1643710606232,0.01936158,38046.0,38036.0,0.1]
[1643710606438,0.01936158,38046.0,38025.0,0.00569237]
[1643710606439,0.353123,38045.0,38027.0,0.0482]
[1643710606732,0.33379932,38044.0,38027.0,0.0482]
[1643710606934,0.01936158,38046.0,38027.0,0.0482]
[1643710607134,0.25000326,38042.0,38039.0,0.08249334]
[1643710607334,0.01936158,38046.0,38040.0,0.33479932]
[1643710607533,0.01936158,38046.0,38041.0,0.001]
[1643710607732,0.01936158,38046.0,38042.0,0.0482]
[1643710607933,0.01936158,38046.0,38043.0,0.0482]
[1643710607934,0.01899357,38046.0,38043.0,0.0482]
[1643710608131,0.01891284,38046.0,38043.0,0.0482]
[1643710608331,0.60173751,38049.0,38043.0,0.17793383]
[1643710608532,0.33379932,38049.0,38044.0,0.001]
[1643710608732,25.0,38050.0,38044.0,0.001]
[1643710608934,25.01986431,38050.0,38044.0,0.001]
[1643710609135,25.0,38050.0,38044.0,0.001]
[1643710609439,0.33379932,38049.0,38044.0,0.001]
[1643710609694,0.28497685,38046.0,38044.0,0.001]
[1643710609894,0.30532555,38049.0,38044.0,0.001]
[1643710610094,0.30652247,38049.0,38044.0,0.001]
[1643710610294,0.353123,38048.0,38044.0,0.001]
[1643710610493,0.31427595,38048.0,38044.0,0.001]
[1643710610698,0.31427595,38048.0,38033.0,0.001]
[1643710610896,0.29710347,38042.0,38032.0,0.101]
[1643710611094,0.29710347,38042.0,38040.0,0.08781932]
[1643710611299,0.29710347,38042.0,38027.0,0.179614]
[1643710611300,0.29710347,38042.0,38034.0,0.001]
[1643710611597,0.30293578,38041.0,38028.0,0.001]
[1643710611801,0.30293578,38041.0,38027.0,0.001]
[1643710611997,0.29710347,38042.0,38027.0,0.066717]
[1643710612196,0.31427595,38048.0,38040.0,0.12161601]
[1643710612396,0.31427595,38048.0,38044.0,0.07557992]
[1643710612596,0.31427595,38048.0,38045.0,0.001]
[1643710613198,0.31427595,38048.0,38046.0,0.11495666]
[1643710613431,25.0,38050.0,38046.0,0.11595666]
[1643710613633,25.0,38050.0,38047.0,0.001]
[1643710614932,25.0,38050.0,38046.0,0.0002592]
[1643710615334,0.353123,38049.0,38046.0,0.0002592]
[1643710615534,0.66081432,38049.0,38046.0,0.0002592]
[1643710615733,25.0,38050.0,38046.0,0.0002592]
[1643710616535,24.99991883,38050.0,38046.0,0.0002592]
[1643710616736,24.99991883,38050.0,38047.0,0.12546206]
[1643710616939,24.99991883,38050.0,38048.0,0.001]
[1643710617179,24.99991883,38050.0,38046.0,0.0002592]
[1643710617580,24.99991883,38050.0,38046.0,0.0012592]
[1643710617777,24.99491883,38050.0,38046.0,0.0002592]
[1643710618077,24.99491883,38050.0,38046.0,0.11778268]
[1643710618278,24.99491883,38050.0,38047.0,0.001]
[1643710619484,24.99291883,38050.0,38046.0,0.0002592]
[1643710620379,0.353123,38049.0,38046.0,0.0002592]
[1643710620579,24.99291883,38050.0,38046.0,0.0012592]
[1643710622731,24.99291883,38050.0,38046.0,0.0494592]
[1643710624431,24.99291883,38050.0,38046.0,0.0012592]
[1643710625080,24.99283802,38050.0,38046.0,0.0012592]
[1643710626279,22.99999576,38050.0,38047.0,0.0482]
[1643710626487,20.42510508,38050.0,38047.0,0.0482]
[1643710626880,20.42482296,38050.0,38047.0,0.0482]
[1643710628630,17.19361941,38050.0,38047.0,0.0482]
[1643710628831,17.19361941,38050.0,38047.0,0.0492]
[1643710629031,17.19361941,38050.0,38047.0,0.0482]
[1643710630438,16.79958841,38050.0,38047.0,0.0482]
[1643710630633,16.79958841,38050.0,38047.0,0.0492]
[1643710630836,16.79958841,38050.0,38047.0,0.21240174]
[1643710630837,0.54198341,38050.0,38047.0,0.21240174]
[1643710631034,0.54198341,38050.0,38049.0,0.05]
[1643710631035,0.14798341,38050.0,38049.0,0.05]
[1643710631232,0.14798341,38050.0,38049.0,0.43161387]
[1643710631434,0.27828701,38067.0,38049.0,0.43161387]
[1643710631637,0.27828701,38067.0,38052.0,0.131359]
[1643710631835,0.27828701,38067.0,38057.0,0.00025912]
[1643710632102,0.01,38069.0,38064.0,0.09867785]
[1643710632294,0.01,38069.0,38065.0,0.001]
[1643710632595,0.01,38069.0,38065.0,0.00125907]
[1643710632793,0.01,38069.0,38065.0,0.00025907]
[1643710632995,0.291669,38067.0,38065.0,0.00025907]
[1643710633393,0.01,38069.0,38065.0,0.00025907]
[1643710633593,0.01,38069.0,38067.0,0.10130013]
[1643710633997,0.2346,38087.0,38068.0,1.21173402]
[1643710634200,0.13665587,38092.0,38075.0,0.000259]
[1643710634201,0.04438197,38092.0,38075.0,0.000259]
[1643710634396,1.22460387,38096.0,38079.0,0.065637]
[1643710634595,1.22460387,38096.0,38081.0,0.12744785]
[1643710634596,0.48430387,38096.0,38081.0,0.12744785]
[1643710634794,0.23780387,38096.0,38085.0,0.00025893]
[1643710634994,0.18780387,38096.0,38089.0,0.08450504]
[1643710635832,0.01,38099.0,38089.0,0.08450504]
[1643710636033,0.605,38099.0,38090.0,0.0482]
[1643710636231,0.605,38099.0,38093.0,0.00025888]
[1643710637033,0.605,38099.0,38094.0,0.0482]
[1643710637034,0.005,38099.0,38094.0,0.0482]
[1643710637836,0.07842966,38098.0,38094.0,0.0482]
[1643710638632,0.86398398,38095.0,38094.0,0.0482]
[1643710638831,0.07842966,38098.0,38094.0,0.0482]
[1643710639232,1.92632317,38112.0,38094.0,0.0482]
[1643710639233,0.31541238,38105.0,38094.0,0.0482]
[1643710639431,1.45055563,38112.0,38096.0,0.05]
[1643710639684,0.08279397,38102.0,38096.0,0.05]
[1643710639884,0.08279397,38102.0,38093.0,0.00025888]
[1643710639885,0.12244138,38099.0,38093.0,0.00025888]
[1643710640288,0.353123,38098.0,38093.0,0.00025888]
[1643710640490,0.39371192,38098.0,38093.0,0.00025888]
[1643710640684,0.39371192,38098.0,38081.0,0.001]
[1643710640886,0.32679228,38089.0,38087.0,0.00025893]
[1643710641085,0.21123144,38089.0,38087.0,0.00025893]
[1643710641288,0.353123,38088.0,38087.0,0.00025893]
[1643710641885,0.35304206,38088.0,38087.0,0.00025893]
[1643710642894,0.35304206,38088.0,38065.0,0.72285529]
[1643710642895,0.85387316,38088.0,38065.0,0.72285529]
[1643710643093,0.85387316,38088.0,38063.0,0.05]
[1643710643094,1.385,38085.0,38064.0,0.3370386]
[1643710643328,0.40207872,38077.0,38065.0,0.20600518]
[1643710643629,0.0482,38078.0,38073.0,0.09208939]
[1643710643827,0.0482,38078.0,38065.0,0.30600518]
[1643710644028,0.0482,38078.0,38066.0,0.3526311]
[1643710644431,0.28797337,38075.0,38066.0,0.3526311]
[1643710644629,0.28797337,38075.0,38070.0,0.05]
[1643710644828,0.38998298,38075.0,38070.0,0.05]
[1643710645028,0.28797337,38075.0,38070.0,0.05]
[1643710645530,0.28797337,38075.0,38065.0,0.20600518]
[1643710645733,0.28797337,38075.0,38062.0,0.0011]
[1643710645734,0.28797337,38075.0,38070.0,0.05]
[1643710645930,0.12202366,38080.0,38070.0,0.05]
[1643710646131,0.07340616,38082.0,38070.0,0.05]
[1643710646333,0.1037075,38079.0,38073.0,0.13880626]
[1643710646531,0.1037075,38079.0,38073.0,0.1]
[1643710646731,0.065667,38082.0,38073.0,0.1]
[1643710647086,0.065667,38082.0,38063.0,0.48197669]
[1643710647087,0.21561852,38079.0,38064.0,0.35049856]
[1643710647279,0.15561852,38079.0,38064.0,0.35049856]
[1643710647480,0.15561852,38079.0,38073.0,0.1]
[1643710647879,0.14886497,38076.0,38067.0,0.05]
[1643710648079,0.15561852,38079.0,38070.0,0.05]
[1643710648284,0.15561852,38079.0,38071.0,0.001]
[1643710648679,0.113859,38086.0,38073.0,0.1]
[1643710648880,0.113859,38086.0,38074.0,0.36538787]
[1643710649082,0.14123211,38084.0,38075.0,0.001]
[1643710649279,0.01901217,38084.0,38074.0,0.35247084]
[1643710649484,0.01901217,38084.0,38080.0,0.1]
[1643710649684,0.01901217,38084.0,38082.0,0.08805128]
[1643710649882,0.01901217,38084.0,38082.0,0.13905128]
[1643710650183,0.01893116,38084.0,38083.0,0.1]
[1643710650582,0.01893116,38084.0,38082.0,0.08805128]
[1643710650843,0.01893116,38084.0,38082.0,0.001]
[1643710651032,0.01893116,38084.0,38082.0,0.05]
[1643710651232,0.01893116,38084.0,38082.0,0.001]
[1643710651433,0.01893116,38084.0,38083.0,0.05]
[1643710651636,0.01893116,38084.0,38080.0,0.001]
[1643710651833,0.12663818,38089.0,38079.0,0.001]
[1643710652233,0.21656908,38085.0,38079.0,0.001]
[1643710652432,0.065649,38092.0,38079.0,0.001]
[1643710652633,0.065649,38092.0,38085.0,0.05]
[1643710652834,0.04161397,38095.0,38087.0,0.10374177]
[1643710653033,0.35522504,38096.0,38088.0,0.001]
[1643710653436,0.26583685,38091.0,38088.0,0.001]
[1643710653831,0.28468339,38091.0,38088.0,0.001]
[1643710654234,0.35147084,38090.0,38088.0,0.001]
[1643710654435,0.28468339,38091.0,38079.0,0.001]
[1643710654683,0.28468339,38091.0,38075.0,0.1]
[1643710654684,0.35147084,38090.0,38076.0,0.001]
[1643710654885,0.26934444,38083.0,38076.0,0.001]
[1643710655083,0.26934444,38083.0,38076.0,0.02283214]
[1643710655283,0.11172866,38080.0,38076.0,0.001]
[1643710655485,0.15276229,38080.0,38076.0,0.001]
[1643710655682,0.15276229,38080.0,38071.0,0.001]
[1643710656090,0.21291659,38074.0,38071.0,0.001]
[1643710656385,0.11915203,38074.0,38071.0,0.001]
[1643710656582,0.1987523,38074.0,38071.0,0.001]
[1643710656786,0.06566,38082.0,38071.0,0.001]
[1643710656986,0.06566,38082.0,38071.0,0.101]
[1643710656987,0.10014443,38082.0,38071.0,0.101]
[1643710657186,0.06566,38082.0,38072.0,0.001]
[1643710657483,0.06566,38082.0,38068.0,0.39113406]
[1643710657484,0.24883746,38081.0,38068.0,0.39113406]
[1643710657686,0.10173316,38080.0,38074.0,0.07908727]
[1643710657885,0.11245215,38077.0,38071.0,0.096]
[1643710658086,0.11245215,38077.0,38071.0,0.046]
[1643710658537,0.1123713,38077.0,38071.0,0.046]
[1643710658936,0.09185212,38074.0,38072.0,0.05]
[1643710659136,0.08685212,38074.0,38072.0,0.05]
[1643710659341,0.08685212,38074.0,38062.0,0.178415]
[1643710659541,0.08685212,38074.0,38062.0,0.0011]
[1643710659740,0.6499852,38073.0,38062.0,0.0011]
[1643710659939,0.04585781,38072.0,38062.0,0.0011]
[1643710660141,0.12316183,38067.0,38062.0,0.0011]
[1643710660442,0.33141947,38073.0,38062.0,0.0011]
[1643710660443,0.03829067,38069.0,38062.0,0.0011]
[1643710660644,0.35147084,38072.0,38062.0,0.0011]
[1643710661248,0.039299,38069.0,38062.0,0.0011]
[1643710661442,0.0485167,38068.0,38062.0,0.0011]
[1643710661640,0.09776271,38066.0,38062.0,0.0011]
[1643710662086,0.14302369,38065.0,38062.0,0.0011]
[1643710662580,0.0482,38071.0,38064.0,0.096]
[1643710662780,0.15097059,38074.0,38062.0,0.0011]
[1643710662781,0.06799312,38074.0,38067.0,0.046]
[1643710662981,0.06799312,38074.0,38067.0,0.047]
[1643710663179,0.01960759,38074.0,38067.0,0.001]
[1643710663378,0.03980557,38074.0,38071.0,0.096]
[1643710663580,0.15478108,38074.0,38072.0,0.08837489]
[1643710663784,0.15478108,38074.0,38072.0,0.001]
[1643710663982,0.15478108,38074.0,38071.0,0.046]
[1643710664182,0.353113,38073.0,38069.0,0.001]
[1643710664380,0.7412077,38073.0,38062.0,0.0011]
[1643710664581,0.3880947,38073.0,38062.0,0.0011]
[1643710664782,0.08329923,38067.0,38062.0,0.0011]
[1643710664982,0.33270341,38073.0,38062.0,0.0011]
[1643710664983,0.03662386,38073.0,38065.0,0.05]
[1643710665182,0.15478108,38074.0,38065.0,0.05]
[1643710665183,0.03980557,38074.0,38071.0,0.096]
[1643710665384,0.04015629,38077.0,38074.0,4.36019443]
[1643710665584,0.0215976,38081.0,38062.0,0.0011]
[1643710665585,0.0215976,38081.0,38075.0,0.001]
[1643710665835,0.0215976,38081.0,38062.0,0.0011]
[1643710665836,0.21486942,38080.0,38079.0,0.096]
[1643710666034,0.0215976,38081.0,38080.0,0.08791987]
[1643710666835,0.0215976,38081.0,38077.0,0.001]
[1643710667036,0.02151638,38081.0,38077.0,0.001]
[1643710667237,0.06836856,38081.0,38073.0,0.03980557]
[1643710667437,1.38585335,38079.0,38065.0,0.001]
[1643710667635,1.38585335,38079.0,38062.0,0.0011]
[1643710667636,0.26665482,38073.0,38070.0,0.05]
[1643710667936,0.35638943,38073.0,38071.0,0.001]
[1643710668134,0.35638943,38073.0,38062.0,0.0011]
[1643710668135,1.24836974,38072.0,38062.0,0.0011]
[1643710668337,0.0482,38071.0,38062.0,0.0011]
[1643710668535,0.04273213,38069.0,38062.0,0.0011]
[1643710668734,0.1506851,38066.0,38062.0,0.0011]
[1643710669137,0.04695299,38069.0,38062.0,0.0011]
[1643710669781,0.065682,38071.0,38062.0,0.0011]
[1643710669983,0.03543332,38073.0,38062.0,0.0011]
[1643710670281,0.29893917,38070.0,38062.0,0.0011]
[1643710670481,0.13412701,38065.0,38062.0,0.0011]
[1643710670880,0.29893917,38070.0,38062.0,0.0011]
[1643710671084,0.09819818,38067.0,38062.0,0.0011]
[1643710671684,0.03924255,38069.0,38062.0,0.0011]
[1643710671880,0.15386834,38068.0,38062.0,0.0011]
[1643710672480,0.05792424,38074.0,38062.0,0.0011]
[1643710672481,0.04322271,38071.0,38062.0,0.0011]
[1643710672680,0.05792424,38074.0,38062.0,0.0011]
[1643710672681,0.03770496,38069.0,38062.0,0.0011]
[1643710672880,0.08106593,38069.0,38062.0,0.0011]
[1643710673083,0.04906103,38073.0,38062.0,0.0011]
[1643710673330,0.25519955,38073.0,38062.0,0.0011]
[1643710673532,0.25519955,38073.0,38064.0,0.38010323]
[1643710673533,0.04324379,38073.0,38064.0,0.38010323]
[1643710673734,0.05792424,38074.0,38065.0,0.4131245]
[1643710673934,0.02145822,38074.0,38066.0,0.001]
[1643710674133,0.02145822,38074.0,38073.0,0.1018893]
[1643710674343,0.02145822,38074.0,38067.0,0.001]
[1643710674534,0.17439282,38074.0,38066.0,0.001]
[1643710674735,0.17439282,38074.0,38065.0,0.066663]
[1643710674937,0.17439282,38074.0,38066.0,0.001]
[1643710675137,0.17439282,38074.0,38063.0,0.010505]
[1643710675138,0.03598909,38073.0,38063.0,0.010505]
[1643710675336,0.09334658,38070.0,38063.0,0.07932901]
[1643710675536,0.02145822,38074.0,38064.0,0.001]
[1643710675936,0.24576976,38075.0,38064.0,0.001]
[1643710676338,0.03771244,38079.0,38064.0,0.001]
[1643710676540,0.14993961,38080.0,38076.0,0.09881813]
[1643710676842,0.04205455,38084.0,38077.0,0.001]
[1643710676843,0.3215355,38081.0,38077.0,0.001]
[1643710677085,0.42065938,38083.0,38077.0,0.001]
[1643710677380,0.02062287,38079.0,38077.0,0.001]
[1643710677579,0.02062287,38079.0,38066.0,0.35653869]
[1643710677580,0.02062287,38079.0,38068.0,0.001]
[1643710677779,0.34671047,38079.0,38067.0,0.001]
[1643710677979,0.3260876,38079.0,38067.0,0.001]
[1643710678179,0.08131084,38072.0,38065.0,0.08516837]
[1643710678379,0.1361314,38076.0,38066.0,0.001]
[1643710678783,0.36004947,38079.0,38066.0,0.001]
[1643710678983,0.4084718,38082.0,38066.0,0.001]
[1643710679385,0.0213713,38081.0,38066.0,0.001]
[1643710679581,0.27523496,38076.0,38066.0,0.001]
[1643710680187,0.33881953,38075.0,38065.0,0.001]
[1643710680385,0.38751707,38075.0,38062.0,0.0011]
[1643710680584,0.27523496,38076.0,38062.0,0.0011]
[1643710680833,0.07561534,38073.0,38062.0,0.0011]
[1643710681133,0.07561534,38073.0,38063.0,0.35745144]
[1643710681433,0.07561534,38073.0,38064.0,0.001]
[1643710681434,0.05061534,38073.0,38064.0,0.001]
[1643710681636,0.05061534,38073.0,38062.0,0.0011]
[1643710681837,0.27523496,38076.0,38062.0,0.0011]
[1643710682234,0.31420719,38076.0,38062.0,0.066772]
[1643710682435,0.27523496,38076.0,38063.0,0.3978491]
[1643710682634,0.27523496,38076.0,38064.0,0.001]
[1643710682835,0.01868656,38077.0,38064.0,0.34234742]
[1643710683038,0.01868656,38077.0,38065.0,0.10017449]
[1643710683237,0.01868656,38077.0,38076.0,0.0902247]
[1643710683839,0.01860566,38077.0,38076.0,0.0902247]
[1643710684435,0.01822537,38077.0,38076.0,0.0902247]
[1643710684691,0.31822537,38077.0,38076.0,0.1402247]
[1643710684888,0.0656502,38090.0,38076.0,0.1402247]
[1643710684889,0.34134742,38091.0,38076.0,0.1884247]
[1643710685088,0.34134742,38093.0,38077.0,0.001]
[1643710685290,0.40698142,38100.0,38078.0,0.0482]
[1643710685489,0.2372521,38095.0,38078.0,0.0482]
[1643710685686,0.34134742,38094.0,38078.0,0.0482]
[1643710685887,0.34134742,38094.0,38089.0,0.08731641]
[1643710686087,0.12790308,38098.0,38079.0,0.15551059]
[1643710686088,0.34134742,38097.0,38090.0,0.001]
[1643710686288,0.34134742,38097.0,38089.0,0.001]
[1643710686487,0.12790308,38098.0,38085.0,0.001]
[1643710686688,0.34134742,38097.0,38085.0,0.001]
[1643710686886,0.2257858,38095.0,38085.0,0.001]
[1643710687490,0.2257858,38095.0,38085.0,0.065635]
[1643710687688,0.2257858,38095.0,38086.0,0.34885237]
[1643710687888,0.00611813,38100.0,38088.0,0.34791684]
[1643710688092,0.08033301,38101.0,38094.0,0.10168505]
[1643710688344,0.235,38105.0,38095.0,0.001]
[1643710688541,0.065627,38103.0,38095.0,0.001]
[1643710688741,0.00503913,38106.0,38095.0,0.001]
[1643710688941,0.26068263,38099.0,38095.0,0.001]
[1643710689245,0.09444476,38102.0,38095.0,0.001]
[1643710689944,0.09444476,38102.0,38092.0,0.065619]
[1643710690142,0.09444476,38102.0,38093.0,0.001]
[1643710690445,0.08858925,38096.0,38093.0,0.001]
[1643710691045,0.08858925,38096.0,38086.0,0.001]
[1643710691243,0.08858925,38096.0,38084.0,0.0482]
[1643710691641,0.25683173,38092.0,38084.0,0.0482]
[1643710692088,0.065641,38094.0,38084.0,0.0482]
[1643710692284,0.00746259,38097.0,38085.0,0.3720979]
[1643710692611,0.67370548,38107.0,38087.0,0.06563]
[1643710692612,0.00628497,38103.0,38087.0,0.06563]
[1643710692784,0.24219323,38107.0,38089.0,0.15337231]
[1643710692985,0.0782399,38100.0,38090.0,0.001]
[1643710694184,0.09816512,38092.0,38090.0,0.001]
[1643710694585,0.43510981,38106.0,38090.0,0.001]
[1643710694884,0.40236248,38106.0,38090.0,0.001]
[1643710695089,0.065627,38102.0,38090.0,0.001]
[1643710695286,0.06562844,38101.0,38090.0,0.001]
[1643710695485,0.26716432,38099.0,38090.0,0.001]
[1643710695686,0.07437125,38097.0,38090.0,0.001]
[1643710696931,0.06937125,38097.0,38090.0,0.001]
[1643710697335,0.065622,38106.0,38090.0,0.32406066]
[1643710697536,0.131233,38112.0,38091.0,0.066618]
[1643710697740,0.04110769,38117.0,38095.0,0.065612]
[1643710697741,0.03843548,38116.0,38095.0,0.065612]
[1643710697934,0.04517796,38116.0,38096.0,0.46016009]
[1643710698135,0.03487941,38115.0,38097.0,0.001]
[1643710698335,0.03554803,38113.0,38098.0,0.0482]